fUSD/lending_fUSD_20240503
["ID","MTS","AMOUNT","RATE_DAILY","PERIOD"]
[325326357,1714728632626,-105.14469137,0.00019999,2]
[325326358,1714728632637,-579.9966379,0.0002,2]
[325326388,1714728638362,-420.0033621,0.0002,2]
[325326390,1714728638372,-228.69782432,0.0002,2]
[325326393,1714728638384,-272.32466048,0.0002,2]
[325326395,1714728638395,-493.68166636,0.0002,2]
[325326398,1714728638423,-5.29584884,0.0002,2]
[325326400,1714728638432,-1016.0,0.0002,2]
[325326402,1714728638442,-499.99,0.0002,2]
[325326404,1714728638452,-155.0,0.0002,2]
[325326406,1714728638462,-716.31163924,0.00021,2]
[325326408,1714728638472,-189.25,0.00021644,2]
[325326410,1714728638481,-1000.0,0.000219,2]
[325326412,1714728638490,-154.17335256,0.00022269,2]
[325326414,1714728638500,-151.6412458,0.00022501,2]
[325326416,1714728638510,-153.72003342,0.00022826,2]
[325326418,1714728638519,-55.183049,0.00023,3]
[325326421,1714728638532,-496.816951,0.00023,3]
[325326423,1714728638541,-163.69417388,0.00023455,2]
[325326425,1714728638550,-151.6412458,0.0002397,2]
[325326426,1714728638559,-154.17335256,0.00024283,2]
[325326428,1714728638569,-383.58138705,0.00024657,2]
[325326431,1714728638581,-547.51861295,0.00024657,2]
[325326433,1714728638591,-931.1,0.00024657,2]
[325326435,1714728638601,-931.1,0.00024657,2]
[325326437,1714728638611,-931.1,0.00024669,2]
[325326439,1714728638622,-1000.0,0.000247,2]
[325326441,1714728638632,-209.07671972,0.00025,2]
[325326443,1714728638642,-1174.14372478,0.00025,2]
[325326445,1714728638658,-703.20536157,0.00025,2]
[325326456,1714728638757,-3122.65091365,0.00025,2]
[325326458,1714728638767,-518.58878703,0.00025,2]
[325326460,1714728638777,-151.6412458,0.00025095,2]
[325326461,1714728638788,-159.88046271,0.0002535,2]
[325326462,1714728638797,-200.0,0.00025624,2]
[325326463,1714728638807,-250.0,0.00025624,2]
[325326464,1714728638818,-155.0,0.0002578,2]
[325326465,1714728638827,-288.0,0.00025799,2]
[325326466,1714728638837,-179.64,0.00026012,3]
[325326467,1714728638847,-155.99402394,0.00026174,2]
[325326468,1714728638857,-175.33,0.00026409,2]
[325326469,1714728638866,-154.17335256,0.00026409,2]
[325326470,1714728638876,-320.522,0.000266,2]
[325326471,1714728638887,-158.9,0.00026653,120]
[325326472,1714728638896,-181.37,0.00026769,2]
[325326473,1714728638906,-500.0,0.00026812,2]
[325326474,1714728638916,-150.0,0.00026947,2]
[325326475,1714728638926,-250.0,0.00026969,2]
[325326476,1714728638936,-2000.0,0.00027,2]
[325326477,1714728638946,-2000.0,0.0002701,2]
[325326478,1714728638955,-2000.0,0.0002702,2]
[325326479,1714728638965,-2000.0,0.0002703,2]
[325326480,1714728638975,-2000.0,0.0002704,2]
[325326481,1714728638984,-500.0,0.00027127,2]
[325326482,1714728638995,-265.53,0.0002714,2]
[325326483,1714728639004,-9967.53958552,0.00027198,2]
[325326484,1714728639017,-13932.46041448,0.00027198,2]
[325326485,1714728639027,-368.22,0.00027312,120]
[325326486,1714728639038,-150.0,0.00027397,2]
[325326487,1714728639048,-1000.0,0.000274,2]
[325326488,1714728639061,-1000.0,0.000276,2]
[325326489,1714728639071,-189.25,0.00027714,2]
[325326490,1714728639081,-1000.0,0.0002788,2]
[325326491,1714728639091,-888.0,0.00027899,3]
[325326492,1714728639102,-931.1,0.00027899,2]
[325326493,1714728639112,-351.092889,0.00027915,2]
[325326494,1714728639121,-745.657285,0.00027915,2]
[325326495,1714728639133,-2199.271084,0.00027915,2]
[325326496,1714728639144,-488.403689,0.00027915,2]
[325326497,1714728639153,-1980.170696,0.00027915,2]
[325326498,1714728639163,-160.433176,0.00027915,2]
[325326499,1714728639173,-256.88507236,0.00027976,2]
[325326500,1714728639183,-452.64726722,0.00027976,2]
[325326501,1714728639193,-236.55615877,0.00027976,2]
[325326502,1714728639203,-428.61016158,0.00027976,2]
[325326503,1714728639213,-420.40254644,0.00027976,2]
[325326504,1714728639223,-1211.45504848,0.00027976,2]
[325326505,1714728639233,-1337.96175164,0.00027976,2]
[325326506,1714728639243,-160.84935553,0.00027976,2]
[325326507,1714728639254,-346.16050584,0.00027976,3]
[325326508,1714728639264,-155.50254673,0.00027976,2]
[325326509,1714728639273,-1137.4885115,0.00027976,2]
[325326510,1714728639283,-574.87184135,0.00027976,2]
[325326511,1714728639293,-175.69742539,0.00027976,2]
[325326512,1714728639303,-157.31713301,0.00027976,2]
[325326513,1714728639313,-2792.94854254,0.00027977,2]
[325326514,1714728639323,-4107.32355274,0.00027977,2]
[325326515,1714728639334,-2065.17558087,0.00027977,2]
[325326516,1714728639345,-2940.58633766,0.00027977,2]
[325326517,1714728639356,-2702.24439579,0.00027977,2]
[325326518,1714728639367,-300.0,0.00027978,2]
[325326519,1714728639377,-931.1,0.00027979,2]
[325326520,1714728639387,-931.1,0.00027979,2]
[325326521,1714728639398,-931.1,0.00027979,2]
[325326522,1714728639408,-931.1,0.00027979,2]
[325326523,1714728639417,-931.1,0.00027979,2]
[325326524,1714728639427,-931.1,0.00027979,2]
[325326525,1714728639438,-931.1,0.00027979,2]
[325326526,1714728639448,-931.1,0.00027979,2]
[325326527,1714728639458,-931.1,0.00027979,2]
[325326528,1714728639468,-931.1,0.00027979,2]
[325326529,1714728639478,-931.1,0.00027979,2]
[325326530,1714728639488,-931.1,0.00027979,2]
[325326531,1714728639498,-931.1,0.00027979,2]
[325326532,1714728639508,-931.1,0.00027979,2]
[325326533,1714728639518,-931.1,0.00027979,2]
[325326534,1714728639527,-931.1,0.00027979,2]
[325326535,1714728639537,-931.1,0.00027979,2]
[325326536,1714728639547,-931.1,0.00027979,2]
[325326537,1714728639557,-931.19,0.00027979,2]
[325326538,1714728639568,-20639.0,0.00028,2]
[325326539,1714728639578,-240.639879,0.00028127,2]
[325326540,1714728639588,-150.0,0.00028128,2]
[325326541,1714728639597,-1000.0,0.00028137,2]
[325326542,1714728639618,-351.092889,0.00028264,2]
[325326543,1714728639629,-745.657285,0.00028264,2]
[325326544,1714728639639,-2199.271084,0.00028264,2]
[325326545,1714728639650,-488.403689,0.00028264,2]
[325326546,1714728639660,-1980.170696,0.00028264,2]
[325326547,1714728639671,-160.433176,0.00028264,2]
[325326548,1714728639681,-150.0,0.00028417,2]
[325326549,1714728639694,-240.639879,0.00028478,2]
[325326550,1714728639704,-351.092889,0.00028613,2]
[325326551,1714728639714,-745.657285,0.00028613,2]
[325326552,1714728639723,-2199.271084,0.00028613,2]
[325326553,1714728639734,-488.403689,0.00028613,2]
[325326554,1714728639744,-1980.170696,0.00028613,2]
[325326555,1714728639754,-160.433176,0.00028613,2]
[325326556,1714728639765,-288.0,0.00028799,2]
[325326557,1714728639775,-240.639879,0.0002883,2]
[325326558,1714728639785,-150.0,0.00028858,2]
[325326559,1714728639795,-164.09578582,0.000289,2]
[325326560,1714728639806,-150.0,0.0002892,30]
[325326561,1714728639816,-685.0,0.0002892,30]
[325326562,1714728639826,-151.51173512,0.0002892,2]
[325326563,1714728639836,-151.51173512,0.0002892,2]
[325326564,1714728639847,-351.092889,0.00028962,2]
[325326565,1714728639857,-745.657285,0.00028962,2]
[325326566,1714728639867,-2199.271084,0.00028962,2]
[325326567,1714728639878,-488.403689,0.00028962,2]
[325326568,1714728639889,-160.433176,0.00028962,2]
[325326569,1714728639901,-1980.170696,0.00028962,2]
[325326570,1714728639912,-563.69488817,0.00029,2]
[325326571,1714728639923,-240.639879,0.00029182,2]
[325326572,1714728639933,-888.0,0.00029269,5]
[325326573,1714728639946,-351.092889,0.0002931,2]
[325326574,1714728639956,-745.657285,0.0002931,2]
[325326575,1714728639966,-2199.271084,0.0002931,2]
[325326576,1714728639977,-488.403689,0.0002931,2]
[325326577,1714728639987,-1980.170696,0.0002931,2]
[325326578,1714728639997,-160.433176,0.0002931,2]
[325326579,1714728640007,-151.6412458,0.00029341,2]
[325326580,1714728640018,-155.0,0.0002945,30]
[325326581,1714728640028,-364.0416314,0.000295,120]
[325326582,1714728640041,-240.639879,0.00029533,2]
[325326583,1714728640052,-151.0,0.00029559,2]
[325326584,1714728640062,-151.64124584,0.00029572,2]
[325326585,1714728640073,-150.0,0.00029589,2]
[325326586,1714728640086,-325.94,0.00029623,2]
[325326587,1714728640096,-868.06,0.00029623,2]
[325326588,1714728640107,-303.61,0.00029623,2]
[325326589,1714728640119,-911.57,0.00029789,2]
[325326590,1714728640129,-414.36,0.00029789,2]
[325326591,1714728640140,-12625.00725318,0.000298,2]
[325326592,1714728640151,-187.25856921,0.000299,2]
[325326593,1714728640161,-2499.72407074,0.0003,2]
[325326594,1714728640172,-155.0,0.0003,4]
[325326595,1714728640182,-500.0,0.0003,2]
[325326596,1714728640193,-177.0,0.0003,2]
[325326597,1714728640203,-244.61,0.00030027,2]
[325326598,1714728640213,-1343.01,0.00030055,2]
[325326599,1714728640223,-414.36,0.00030055,2]
[325326600,1714728640233,-414.36,0.00030055,2]
[325326601,1714728640244,-414.36,0.00030055,2]
[325326602,1714728640254,-414.36,0.00030055,2]
[325326603,1714728640264,-413.41,0.00030055,2]
[325326604,1714728640279,-992.0,0.000301,2]
[325326605,1714728640290,-207.0,0.0003012,2]
[325326606,1714728640300,-1000.0,0.0003012,20]
[325326607,1714728640311,-1000.0,0.0003012,20]
[325326608,1714728640322,-1000.0,0.0003012,20]
[325326612,1714728640332,-1000.0,0.0003012,20]
[325326613,1714728640342,-1000.0,0.0003012,20]
[325326614,1714728640352,-1000.0,0.0003012,20]
[325326615,1714728640362,-1000.0,0.0003012,20]
[325326616,1714728640372,-1000.0,0.0003012,20]
[325326617,1714728640382,-1000.0,0.0003012,20]
[325326618,1714728640392,-1000.0,0.0003012,20]
[325326619,1714728640402,-1000.0,0.0003012,20]
[325326620,1714728640412,-1000.0,0.0003012,20]
[325326621,1714728640422,-1000.0,0.0003012,20]
[325326622,1714728640432,-1000.0,0.0003012,20]
[325326623,1714728640444,-1000.0,0.0003012,20]
[325326624,1714728640454,-1000.0,0.0003012,20]
[325326625,1714728640463,-1000.0,0.0003012,20]
[325326626,1714728640473,-1000.0,0.0003012,20]
[325326627,1714728640483,-1000.0,0.0003012,20]
[325326628,1714728640492,-1000.0,0.0003012,20]
[325326629,1714728640502,-1000.0,0.0003012,20]
[325326630,1714728640512,-1000.0,0.0003012,20]
[325326631,1714728640522,-1000.0,0.0003012,20]
[325326632,1714728640531,-1000.0,0.0003012,20]
[325326633,1714728640541,-1000.0,0.0003012,20]
[325326634,1714728640550,-1000.0,0.0003012,20]
[325326635,1714728640560,-1000.0,0.0003012,20]
[325326636,1714728640570,-1000.0,0.0003012,20]
[325326637,1714728640579,-1000.0,0.0003012,20]
[325326638,1714728640589,-1000.0,0.0003012,20]
[325326639,1714728640599,-665.85338911,0.0003012,20]
[325326640,1714728640609,-174.19,0.00030166,2]
[325326641,1714728640619,-300.38,0.00030192,2]
[325326642,1714728640629,-419.58,0.00030192,2]
[325326643,1714728640640,-377.46,0.00030192,2]
[325326644,1714728640650,-150.0,0.00030192,2]
[325326645,1714728640660,-151.4,0.00030192,2]
[325326646,1714728640670,-1044.24,0.00030192,2]
[325326647,1714728640684,-150.0,0.00030192,2]
[325326648,1714728640696,-419.58,0.00030192,2]
[325326649,1714728640705,-150.0,0.00030192,2]
[325326650,1714728640715,-419.58,0.00030192,2]
[325326651,1714728640725,-150.0,0.00030192,2]
[325326652,1714728640735,-150.0,0.00030192,2]
[325326653,1714728640746,-150.0,0.00030192,2]
[325326654,1714728640756,-419.58,0.00030192,2]
[325326655,1714728640766,-419.08,0.00030192,2]
[325326656,1714728640776,-150.0,0.00030192,2]
[325326657,1714728640786,-180.0,0.00030258,2]
[325326658,1714728640796,-150.0,0.00030319,2]
[325326659,1714728640807,-1064.58647909,0.0003038,2]
[325326660,1714728640817,-350.66,0.00030474,2]
[325326661,1714728640828,-150.0,0.00030493,2]
[325326662,1714728640838,-150.0,0.00030493,2]
[325326663,1714728640848,-150.0,0.00030493,2]
[325326664,1714728640858,-500.0,0.000305,120]
[325326665,1714728640868,-200.0,0.000305,11]
[325326666,1714728640878,-500.0,0.000306,11]
[325326667,1714728640889,-888.0,0.00030639,7]
[325326668,1714728640899,-700.0,0.000307,11]
[325326669,1714728640910,-300.0,0.00030718,2]
[325326670,1714728640920,-368.22,0.00030726,120]
[325326671,1714728640930,-300.0,0.00030728,2]
[325326672,1714728640941,-150.0,0.00030738,2]
[325326673,1714728640951,-1000.0,0.00030751,10]
[325326674,1714728640962,-500.0,0.00030751,2]
[325326675,1714728640972,-200.0,0.00030751,2]
[325326676,1714728640982,-150.0,0.00030755,2]
[325326677,1714728640991,-150.0,0.00030763,2]
[325326678,1714728641001,-150.0,0.00030771,2]
[325326679,1714728641011,-1560.32144644,0.00030777,2]
[325326680,1714728641021,-168.34672332,0.00030781,2]
[325326681,1714728641031,-150.0,0.00030784,2]
[325326682,1714728641044,-150.0,0.00030786,2]
[325326683,1714728641059,-150.0,0.00030791,2]
[325326684,1714728641070,-1500.0,0.00030792,2]
[325326685,1714728641081,-150.0,0.00030795,2]
[325326686,1714728641091,-1000.0,0.000308,11]
[325326687,1714728641100,-150.0,0.00030809,2]
[325326688,1714728641110,-150.0,0.00030811,2]
[325326689,1714728641120,-150.0,0.00030818,2]
[325326690,1714728641132,-300.0,0.00030821,2]
[325326691,1714728641142,-150.0,0.0003083,2]
[325326692,1714728641153,-3497.72576639,0.00030865,2]
[325326693,1714728641163,-7500.0,0.0003088,2]
[325326694,1714728641172,-150.0,0.00030885,2]
[325326695,1714728641183,-192.21723298,0.00030885,2]
[325326696,1714728641194,-151.51506521,0.00030885,2]
[325326697,1714728641204,-212.21969678,0.00030885,2]
[325326698,1714728641214,-182.66917425,0.00030885,2]
[325326699,1714728641224,-1479.09423534,0.00030885,2]
[325326700,1714728641234,-173.55712462,0.00030886,2]
[325326701,1714728641244,-151.87422436,0.00030886,2]
[325326702,1714728641254,-174.74426026,0.00030892,2]
[325326703,1714728641265,-949.0,0.00030899,5]
[325326704,1714728641274,-500.0,0.00030899,2]
[325326705,1714728641284,-167067.9336,0.000309,2]
[325326706,1714728641295,-1000.0,0.000309,2]
[325326707,1714728641306,-1200.0,0.000309,11]
[325326708,1714728641315,-1500.0,0.00030906,2]
[325326709,1714728641326,-150.0,0.00030922,2]
[325326710,1714728641336,-150.0,0.00030945,2]
[325326711,1714728641346,-150.0,0.00030946,2]
[325326712,1714728641357,-150.0,0.00030951,2]
[325326713,1714728641367,-150.0,0.00030952,2]
[325326714,1714728641378,-1500.0,0.00030959,2]
[325326715,1714728641388,-150.0,0.00030972,2]
[325326716,1714728641398,-150.0,0.00030979,10]
[325326717,1714728641408,-150.0,0.00030979,10]
[325326718,1714728641419,-155.49931898,0.00030979,10]
[325326719,1714728641430,-500.0,0.00030979,2]
[325326720,1714728641442,-555.53712837,0.00030979,2]
[325326721,1714728641453,-210820.48302098,0.0003098,5]
[325326722,1714728641462,-3480445.10973066,0.0003098,2]
[325326723,1714728642517,-592595.44946753,0.0003098,2]
[325326724,1714728642526,-150.0,0.00030985,2]
[325326725,1714728642535,-437.12,0.00030986,2]
[325326726,1714728642545,-150.0,0.00030986,2]
[325326727,1714728642554,-150.0,0.00030986,2]
[325326728,1714728642564,-150.0,0.00030986,2]
[325326729,1714728642573,-150.0,0.00030986,2]
[325326730,1714728642582,-150.0,0.0003099,2]
[325326731,1714728642592,-835.6380317,0.00030992,2]
[325326732,1714728642601,-5627.2682246,0.00030992,2]
[325326733,1714728642611,-95030.7273679,0.00030992,2]
[325326734,1714728642620,-2067.8457138,0.00030992,2]
[325326735,1714728642629,-150.0,0.00030996,2]
[325326736,1714728642639,-28828.42,0.00030997,5]
[325326737,1714728642648,-242.52909196,0.00030998,2]
[325326738,1714728642658,-5853.8102457,0.00030998,2]
[325326739,1714728642667,-1543.56026,0.00030999,2]
[325326740,1714728642676,-150.0,0.00030999,10]
[325326741,1714728642686,-568351.7470315,0.00031,5]
[325326742,1714728642695,-685.0,0.00031,3]
[325326743,1714728642705,-482.3671683,0.00031,2]
[325326744,1714728642714,-155.0,0.00031,2]
[325326745,1714728642724,-810.83379342,0.00031,14]
[325326746,1714728642734,-1606.02195512,0.00031,4]
[325326747,1714728642744,-155.0,0.00031,2]
[325326748,1714728642754,-155.0,0.00031,2]
[325326749,1714728642763,-342.0,0.00031,3]
[325326750,1714728642773,-685.0,0.00031,3]
[325326751,1714728642782,-182.0,0.00031,29]
[325326752,1714728642792,-492.26920761,0.00031,5]
[325326753,1714728642801,-500.0,0.00031,3]
[325326754,1714728642810,-500.0,0.00031,120]
[325326755,1714728642819,-1000.0,0.00031,2]
[325326756,1714728642829,-1000.0,0.00031,2]
[325326757,1714728642838,-1000.0,0.00031,2]
[325326758,1714728642847,-1000.0,0.00031,2]
[325326759,1714728642857,-1000.0,0.00031,2]
[325326760,1714728642866,-1000.0,0.00031,2]
[325326761,1714728642875,-1000.0,0.00031,2]
[325326762,1714728642884,-1000.0,0.00031,2]
[325326763,1714728642893,-1000.0,0.00031,2]
[325326764,1714728642903,-1000.0,0.00031,2]
[325326765,1714728642912,-1000.0,0.00031,2]
[325326766,1714728642921,-479.0,0.00031,15]
[325326767,1714728642931,-906.06,0.00031,2]
[325326768,1714728642941,-877.08,0.00031,2]
[325326769,1714728642950,-200.0,0.00031,2]
[325326770,1714728642959,-150.0,0.00031,3]
[325326771,1714728642968,-1002.14,0.00031,2]
[325326772,1714728642977,-316.28,0.00031,2]
[325326773,1714728642987,-9952.8322524,0.00031029,2]
[325326774,1714728642996,-150.0,0.0003105,2]
[325326775,1714728643006,-8010.84861233,0.0003121,2]
[325326776,1714728643016,-200.323743,0.00031433,2]
[325326777,1714728643025,-1000.0,0.000315,2]
[325326778,1714728643036,-500.0,0.000315,120]
[325326779,1714728643051,-414.63,0.00031644,2]
[325326780,1714728643060,-1000.0,0.00031654,2]
[325326781,1714728643069,-911.57,0.0003176,2]
[325326782,1714728643079,-414.36,0.0003176,2]
[325326783,1714728643090,-414.36,0.0003176,2]
[325326784,1714728643100,-911.57,0.0003176,2]
[325326785,1714728643110,-911.57,0.0003176,2]
[325326787,1714728643119,-414.36,0.0003176,2]
[325326789,1714728643132,-911.57,0.0003176,2]
[325326790,1714728643141,-154.19,0.0003176,2]
[325326791,1714728643151,-911.57,0.0003176,2]
[325326792,1714728643159,-911.57,0.0003176,2]
[325326794,1714728643168,-911.57,0.0003176,2]
[325326796,1714728643177,-911.57,0.0003176,2]
[325326797,1714728643187,-911.57,0.0003176,2]
[325326798,1714728643199,-911.57,0.0003176,2]
[325326799,1714728643208,-1149.85,0.0003176,2]
[325326800,1714728643217,-150.0,0.00031781,2]
[325326801,1714728643227,-288.0,0.00031799,2]
[325326802,1714728643236,-300.0,0.00031999,5]
[325326803,1714728643246,-50000.0,0.00032,12]
[325326804,1714728643256,-332.6433445,0.00032,4]
[325326805,1714728643266,-500.0,0.00032,120]
[325326807,1714728643276,-563.27,0.00032009,9]
[325326810,1714728643286,-174.74426026,0.00032093,2]
[325326813,1714728643295,-6352.34181349,0.00032112,2]
[325326816,1714728643304,-350.66,0.00032171,2]
[325326818,1714728643314,-300.0,0.00032171,2]
[325326819,1714728643323,-151.87422436,0.00032171,2]
[325326820,1714728643332,-906.06,0.000322,2]
[325326822,1714728643340,-877.08,0.000322,2]
[325326824,1714728643350,-239644.36394907,0.0003222,2]
[325326826,1714728643359,-6011.96951905,0.00032241,2]
[325326828,1714728643368,-5000.0,0.00032241,2]
[325326830,1714728643378,-5000.0,0.00032241,2]
[325326832,1714728643387,-194.0,0.0003239,32]
[325326833,1714728643396,-151.51506521,0.00032459,4]
[325326834,1714728643406,-500.0,0.000325,120]
[325326835,1714728643415,-150.0,0.00032511,2]
[325326836,1714728643425,-1002.14,0.00032525,2]
[325326837,1714728643435,-155.41599908,0.00032546,5]
[325326838,1714728643446,-167.81797269,0.0003259,2]
[325326839,1714728643457,-3325.53842237,0.00032611,2]
[325326840,1714728643466,-316.28,0.00032755,2]
[325326841,1714728643476,-1226.01241372,0.00032757,2]
[325326842,1714728643485,-3534.63820326,0.000328,2]
[325326843,1714728643495,-189.66064792,0.000328,4]
[325326844,1714728643504,-1450.87219304,0.0003281,2]
[325326845,1714728643514,-1797.01,0.00032876,2]
[325326846,1714728643523,-1797.01,0.00032876,2]
[325326847,1714728643533,-1797.01,0.00032876,2]
[325326848,1714728643543,-1797.01,0.00032876,2]
[325326849,1714728643552,-1797.01,0.00032876,2]
[325326850,1714728643562,-1797.01,0.00032876,2]
[325326851,1714728643571,-1797.01,0.00032876,2]
[325326852,1714728643580,-1797.01,0.00032876,2]
[325326853,1714728643589,-1797.01,0.00032876,2]
[325326854,1714728643599,-1797.01,0.00032876,2]
[325326855,1714728643608,-1797.01,0.00032876,2]
[325326856,1714728643618,-1797.01,0.00032876,2]
[325326857,1714728643629,-1797.01,0.00032876,2]
[325326858,1714728643639,-1797.01,0.00032876,2]
[325326859,1714728643651,-1797.01,0.00032876,2]
[325326860,1714728643660,-1797.01,0.00032876,2]
[325326861,1714728643670,-1797.01,0.00032876,2]
[325326862,1714728643679,-1797.01,0.00032876,2]
[325326863,1714728643689,-1797.01,0.00032876,2]
[325326864,1714728643699,-1797.01,0.00032876,2]
[325326865,1714728643708,-1797.01,0.00032876,2]
[325326866,1714728643718,-1797.01,0.00032876,2]
[325326867,1714728643728,-1797.01,0.00032876,2]
[325326868,1714728643737,-1797.19033372,0.00032876,2]
[325326869,1714728643747,-321.77,0.00032877,2]
[325326870,1714728643756,-56195.86,0.00032877,2]
[325326871,1714728643765,-37719.81,0.00032877,2]
[325326872,1714728643775,-2539.72041204,0.000329,2]
[325326873,1714728643784,-992.88022221,0.000329,2]
[325326874,1714728643793,-172.4552756,0.000329,2]
[325326875,1714728643803,-500.0,0.000329,2]
[325326876,1714728643812,-200.0,0.000329,12]
[325326877,1714728643821,-301.95,0.00032993,2]
[325326878,1714728643830,-150.0,0.00032999,30]
[325326879,1714728643840,-50000.0,0.00033,13]
[325326880,1714728643849,-220000.0,0.00033,3]
[325326881,1714728643859,-15048.85370139,0.00033,2]
[325326882,1714728643868,-24358.95942313,0.00033,2]
[325326883,1714728643878,-974.00282489,0.00033,2]
[325326884,1714728643887,-500.0,0.00033,120]
[325326885,1714728643896,-1692.746253,0.00033,2]
[325326886,1714728643905,-10000.0,0.00033011,2]
[325326887,1714728643915,-206440.0,0.00033111,5]
[325326889,1714728643924,-150.0,0.00033242,2]
[325326891,1714728643933,-174.74426026,0.00033294,2]
[325326892,1714728643943,-500.0,0.000333,10]
[325326893,1714728643953,-900.0,0.000333,10]
[325326894,1714728643962,-906.06,0.000333,2]
[325326895,1714728643971,-877.08,0.000333,2]
[325326896,1714728643981,-666.7399325,0.0003335,2]
[325326897,1714728643990,-151.87422436,0.00033456,2]
[325326898,1714728644001,-300.0,0.00033458,2]
[325326899,1714728644010,-1138.67972469,0.000335,2]
[325326900,1714728644019,-500.0,0.000335,120]
[325326901,1714728644030,-153.42929399,0.00033613,7]
[325326902,1714728644046,-163.69417388,0.00033774,7]
[325326903,1714728644055,-195.02,0.00033785,2]
[325326904,1714728644064,-189.25,0.00033785,2]
[325326905,1714728644073,-500.0,0.00033848,10]
[325326906,1714728644085,-900.0,0.00033848,10]
[325326907,1714728644094,-201.59,0.00033879,2]
[325326908,1714728644103,-947.3,0.00033879,2]
[325326909,1714728644112,-366.11,0.00033879,2]
[325326910,1714728644122,-162.99,0.00033879,2]
[325326912,1714728644133,-350.77,0.00033879,2]
[325326913,1714728644142,-833.01,0.00033879,2]
[325326914,1714728644152,-522.41,0.00033879,2]
[325326915,1714728644161,-301.47,0.00033879,2]
[325326916,1714728644171,-1043.81,0.00033879,2]
[325326917,1714728644180,-187.25856921,0.000339,2]
[325326918,1714728644190,-150.0,0.00033972,2]
[325326919,1714728644199,-50000.0,0.00034,14]
[325326920,1714728644208,-5245.61895176,0.00034,24]
[325326921,1714728644222,-44754.38104824,0.00034,24]
[325326922,1714728644231,-500.0,0.00034,120]
[325326923,1714728644240,-566.11,0.00034,2]
[325326924,1714728644250,-151.51506521,0.00034032,6]
[325326925,1714728644259,-1002.14,0.0003405,2]
[325326926,1714728644268,-368.22,0.0003414,120]
[325326927,1714728644277,-150.0,0.00034153,2]
[325326928,1714728644286,-301.08,0.00034153,2]
[325326929,1714728644296,-500.0,0.00034396,10]
[325326930,1714728644305,-900.0,0.00034396,10]
[325326931,1714728644314,-906.06,0.000344,2]
[325326932,1714728644324,-877.08,0.000344,2]
[325326933,1714728644333,-174.74426026,0.00034495,2]
[325326934,1714728644342,-500.0,0.000345,120]
[325326935,1714728644352,-316.28,0.0003451,2]
[325326936,1714728644361,-150.0,0.00034548,10]
[325326937,1714728644371,-150.0,0.00034701,2]
[325326938,1714728644380,-150.0,0.00034701,2]
[325326939,1714728644389,-150.0,0.00034701,2]
[325326940,1714728644398,-150.0,0.00034701,2]
[325326941,1714728644407,-150.0,0.00034701,2]
[325326942,1714728644417,-206.97,0.00034701,2]
[325326943,1714728644426,-150.0,0.00034703,2]
[325326944,1714728644435,-151.87422436,0.00034741,2]
[325326945,1714728644444,-1000.0,0.0003475,2]
[325326946,1714728644453,-288.0,0.00034799,2]
[325326947,1714728644462,-566.11,0.000348,2]
[325326948,1714728644472,-2861.52,0.000348,2]
[325326949,1714728644481,-2861.52,0.000348,2]
[325326950,1714728644490,-2861.52,0.000348,2]
[325326951,1714728644499,-152.0,0.00034834,3]